fUST/lending_fUST_20250630
["ID","MTS","AMOUNT","RATE_DAILY","PERIOD"]
[368645172,1751262644728,-151.0,0.00019521,2]
[368645173,1751262644738,-151.0,0.00019521,2]
[368645174,1751262644747,-151.0,0.00019521,2]
[368645175,1751262644758,-151.0,0.00019521,2]
[368645176,1751262644768,-151.0,0.00019521,2]
[368645177,1751262644778,-151.0,0.00019521,2]
[368645178,1751262644787,-151.0,0.00019521,2]
[368645179,1751262644797,-151.0,0.00019521,2]
[368645180,1751262644807,-151.0,0.00019521,2]
[368645181,1751262644818,-160.304928,0.00019521,2]
[368645182,1751262644829,-166.685958,0.00019521,2]
[368645183,1751262644839,-151.0,0.00019521,2]
[368645184,1751262644848,-166.685958,0.00019521,2]
[368645185,1751262644858,-276.566079,0.00019521,2]
[368645186,1751262644867,-151.0,0.00019521,2]
[368645187,1751262644877,-151.0,0.00019521,2]
[368645188,1751262644886,-394.626409,0.00019521,2]
[368645189,1751262644895,-151.0,0.00019521,2]
[368645190,1751262644905,-394.626409,0.00019521,2]
[368645191,1751262644915,-151.0,0.00019521,2]
[368645192,1751262644924,-154.553503,0.00019521,2]
[368645193,1751262644934,-156.038871,0.00019521,2]
[368645194,1751262644947,-151.0,0.00019521,2]
[368645195,1751262644957,-275.897576,0.00019521,2]
[368645196,1751262644966,-151.0,0.00019521,2]
[368645197,1751262644975,-275.897576,0.00019521,2]
[368645198,1751262644987,-1250.0,0.00019532,2]
[368645199,1751262644996,-1250.0,0.0001956,2]
[368645200,1751262645005,-1138.46,0.0001958,2]
[368645201,1751262645016,-1863.94,0.0001958,2]
[368645202,1751262645026,-2009.38,0.0001958,2]
[368645203,1751262645036,-460.0,0.0001958,2]
[368645204,1751262645045,-460.0,0.0001958,2]
[368645205,1751262645054,-1952.25,0.0001958,2]
[368645206,1751262645064,-1675.49,0.0001958,2]
[368645207,1751262645074,-491.56,0.0001958,2]
[368645208,1751262645083,-2254.03,0.0001958,2]
[368645209,1751262645092,-460.0,0.0001958,2]
[368645210,1751262645102,-460.0,0.0001958,2]
[368645211,1751262645112,-488.01909533,0.0001958,2]
[368645212,1751262645132,-1122.85,0.0001958,2]
[368645213,1751262645143,-1409.11,0.0001958,2]
[368645214,1751262645153,-460.0,0.0001958,2]
[368645215,1751262645163,-460.0,0.0001958,2]
[368645216,1751262645173,-332.1856276,0.0001958,2]
[368645217,1751262645182,-727.02,0.00019581,2]
[368645218,1751262645192,-1127.62,0.00019581,2]
[368645219,1751262645202,-460.0,0.00019581,2]
[368645220,1751262645212,-460.0,0.00019581,2]
[368645221,1751262645223,-460.0,0.00019581,2]
[368645222,1751262645232,-460.0,0.00019581,2]
[368645223,1751262645242,-460.0,0.00019581,2]
[368645224,1751262645252,-460.0,0.00019581,2]
[368645225,1751262645262,-460.0,0.00019581,2]
[368645226,1751262645272,-750.26,0.00019581,2]
[368645227,1751262645282,-460.0,0.00019581,2]
[368645228,1751262645292,-460.0,0.00019581,2]
[368645229,1751262645303,-3594.53,0.00019581,2]
[368645230,1751262645313,-11094.58,0.00019581,2]
[368645231,1751262645323,-483.7,0.00019581,2]
[368645232,1751262645333,-948.3,0.00019581,2]
[368645233,1751262645343,-710.42,0.00019581,2]
[368645234,1751262645353,-460.0,0.00019582,2]
[368645235,1751262645363,-460.0,0.00019582,2]
[368645236,1751262645373,-460.0,0.00019582,2]
[368645237,1751262645384,-460.0,0.00019582,2]
[368645238,1751262645394,-460.0,0.00019582,2]
[368645239,1751262645404,-857.18,0.00019582,2]
[368645240,1751262645414,-1334.16,0.00019582,2]
[368645241,1751262645423,-460.0,0.00019582,2]
[368645242,1751262645433,-1105.03,0.00019582,2]
[368645243,1751262645443,-460.0,0.00019582,2]
[368645244,1751262645453,-1091.2,0.00019582,2]
[368645245,1751262645463,-1651.06,0.00019582,2]
[368645246,1751262645472,-460.0,0.00019582,2]
[368645247,1751262645482,-460.0,0.00019582,2]
[368645248,1751262645492,-760.58,0.00019582,2]
[368645249,1751262645502,-1315.33,0.00019582,2]
[368645250,1751262645511,-460.0,0.00019582,2]
[368645251,1751262645521,-4213.61,0.00019582,2]
[368645252,1751262645531,-560.78,0.00019583,2]
[368645253,1751262645541,-1250.0,0.00019587,2]
[368645254,1751262645550,-5336.93668258,0.0001959,2]
[368645255,1751262645560,-1250.0,0.00019614,2]
[368645256,1751262645570,-1250.0,0.00019642,2]
[368645257,1751262645579,-1251.02510962,0.00019669,2]
[368645258,1751262645589,-151.442658,0.00019686,2]
[368645259,1751262645599,-249.0,0.00019736,2]
[368645260,1751262645608,-502.40315064,0.00019748,2]
[368645261,1751262645618,-5336.93668258,0.00019762,2]
[368645262,1751262645627,-1000.0,0.00019773,2]
[368645263,1751262645638,-201.29531528,0.00019773,2]
[368645264,1751262645648,-247.22408996,0.00019773,2]
[368645265,1751262645657,-502.06382381,0.00019773,2]
[368645266,1751262645666,-1000.32182282,0.00019773,2]
[368645267,1751262645676,-1000.1469035,0.00019773,2]
[368645268,1751262645685,-1000.0,0.00019773,2]
[368645269,1751262645697,-1000.0,0.00019773,2]
[368645270,1751262645708,-1000.90077759,0.00019773,2]
[368645271,1751262645718,-1000.0,0.00019773,2]
[368645272,1751262645727,-1000.0,0.00019773,2]
[368645273,1751262645736,-1000.0,0.00019773,2]
[368645274,1751262645746,-1000.84220279,0.00019773,2]
[368645275,1751262645755,-1001.0369887,0.00019773,2]
[368645276,1751262645765,-1001.12856268,0.00019773,2]
[368645277,1751262645775,-1000.0,0.00019773,2]
[368645278,1751262645784,-431.69007642,0.00019773,2]
[368645279,1751262645793,-1001.22139317,0.00019773,2]
[368645280,1751262645804,-1000.0,0.00019773,2]
[368645281,1751262645813,-1070.9676424,0.00019773,2]
[368645282,1751262645823,-1000.0,0.00019778,2]
[368645283,1751262645833,-1000.0,0.00019812,2]
[368645284,1751262645843,-1000.0,0.00019812,2]
[368645285,1751262645853,-502.45500882,0.00019831,2]
[368645286,1751262645863,-151.0,0.00019845,2]
[368645287,1751262645872,-219.027304,0.00019845,2]
[368645288,1751262645882,-151.0,0.00019845,2]
[368645289,1751262645892,-500.0,0.00019845,2]
[368645291,1751262645901,-501.36610691,0.00019845,2]
[368645292,1751262645911,-1000.0,0.00019845,2]
[368645293,1751262645921,-939.8,0.00019846,3]
[368645294,1751262645933,-469.9,0.00019846,3]
[368645295,1751262645943,-1879.6,0.00019847,3]
[368645296,1751262645952,-152.726319,0.00019847,2]
[368645297,1751262645962,-151.0,0.00019847,2]
[368645298,1751262645972,-151.0,0.00019847,2]
[368645299,1751262645982,-151.0,0.00019847,2]
[368645300,1751262645991,-151.0,0.00019847,2]
[368645301,1751262646001,-151.0,0.00019847,2]
[368645302,1751262646010,-337.474726,0.00019847,2]
[368645304,1751262646019,-337.474726,0.00019847,2]
[368645305,1751262646029,-1138.46,0.00019854,2]
[368645306,1751262646039,-1863.94,0.00019854,2]
[368645308,1751262646219,-2009.38,0.00019854,2]
[368645309,1751262646230,-460.0,0.00019854,2]
[368645310,1751262646240,-1952.25,0.00019854,2]
[368645311,1751262646250,-1675.49,0.00019854,2]
[368645312,1751262646260,-491.56,0.00019854,2]
[368645313,1751262646270,-2254.03,0.00019854,2]
[368645314,1751262646280,-460.0,0.00019854,2]
[368645315,1751262646290,-460.0,0.00019854,2]
[368645316,1751262646300,-1122.85,0.00019854,2]
[368645317,1751262646310,-1409.11,0.00019854,2]
[368645318,1751262646320,-460.0,0.00019854,2]
[368645319,1751262646329,-460.0,0.00019854,2]
[368645320,1751262646339,-151.0,0.00019855,2]
[368645321,1751262646348,-151.0,0.00019855,2]
[368645322,1751262646358,-151.0,0.00019855,2]
[368645323,1751262646367,-151.0,0.00019855,2]
[368645324,1751262646377,-727.02,0.00019855,2]
[368645325,1751262646388,-1127.62,0.00019855,2]
[368645326,1751262646397,-460.0,0.00019855,2]
[368645327,1751262646407,-460.0,0.00019855,2]
[368645328,1751262646416,-152.358025,0.00019855,2]
[368645329,1751262646426,-460.0,0.00019855,2]
[368645330,1751262646435,-460.0,0.00019855,2]
[368645331,1751262646444,-151.0,0.00019855,2]
[368645332,1751262646454,-460.0,0.00019855,2]
[368645333,1751262646464,-460.0,0.00019855,2]
[368645334,1751262646473,-151.0,0.00019855,2]
[368645335,1751262646483,-460.0,0.00019855,2]
[368645336,1751262646493,-750.26,0.00019855,2]
[368645337,1751262646502,-460.0,0.00019855,2]
[368645338,1751262646511,-347.06217225,0.00019855,2]
[368645339,1751262646520,-11094.58,0.00019855,2]
[368645340,1751262646529,-3594.53,0.00019855,2]
[368645341,1751262646538,-483.7,0.00019855,2]
[368645342,1751262646547,-948.3,0.00019855,2]
[368645343,1751262646557,-710.42,0.00019855,2]
[368645344,1751262646566,-151.0,0.00019856,2]
[368645345,1751262646575,-151.0,0.00019856,2]
[368645346,1751262646585,-460.0,0.00019856,2]
[368645347,1751262646596,-151.0,0.00019856,2]
[368645348,1751262646605,-151.840684,0.00019856,2]
[368645349,1751262646614,-460.0,0.00019856,2]
[368645350,1751262646623,-151.0,0.00019856,2]
[368645351,1751262646633,-199.621872,0.00019856,2]
[368645352,1751262646642,-500.0,0.00019856,2]
[368645353,1751262646651,-460.0,0.00019856,2]
[368645354,1751262646661,-460.0,0.00019856,2]
[368645355,1751262646670,-151.0,0.00019856,2]
[368645356,1751262646679,-151.0,0.00019856,2]
[368645357,1751262646689,-157.034344,0.00019856,2]
[368645358,1751262646698,-151.0,0.00019856,2]
[368645359,1751262646707,-857.18,0.00019856,2]
[368645360,1751262646717,-151.0,0.00019856,2]
[368645361,1751262646726,-151.0,0.00019856,2]
[368645362,1751262646735,-394.626409,0.00019856,2]
[368645363,1751262646745,-1334.16,0.00019856,2]
[368645364,1751262646754,-394.626409,0.00019856,2]
[368645365,1751262646763,-460.0,0.00019856,2]
[368645366,1751262646772,-1105.03,0.00019856,2]
[368645367,1751262646781,-151.0,0.00019856,2]
[368645368,1751262646791,-151.0,0.00019856,2]
[368645369,1751262646800,-460.0,0.00019856,2]
[368645370,1751262646809,-1091.2,0.00019856,2]
[368645371,1751262646818,-1651.06,0.00019856,2]
[368645372,1751262646828,-460.0,0.00019856,2]
[368645373,1751262646837,-460.0,0.00019856,2]
[368645374,1751262646846,-760.58,0.00019856,2]
[368645375,1751262646855,-1315.33,0.00019856,2]
[368645376,1751262646864,-460.0,0.00019856,2]
[368645377,1751262646874,-4213.61,0.00019856,2]
[368645378,1751262646883,-151.0,0.00019857,2]
[368645379,1751262646892,-151.0,0.00019857,2]
[368645380,1751262646901,-560.78,0.00019857,2]
[368645381,1751262646910,-151.0,0.00019857,2]
[368645382,1751262646919,-151.0,0.00019857,2]
[368645383,1751262646929,-288.295922,0.00019857,2]
[368645384,1751262646941,-151.0,0.00019857,2]
[368645385,1751262646951,-151.0,0.00019857,2]
[368645386,1751262646960,-151.0,0.00019857,2]
[368645387,1751262646969,-166.685958,0.00019857,2]
[368645388,1751262646979,-151.0,0.00019857,2]
[368645389,1751262646988,-166.685958,0.00019857,2]
[368645390,1751262646998,-275.897576,0.00019857,2]
[368645391,1751262647007,-275.897576,0.00019857,2]
[368645392,1751262647017,-420.0,0.00019863,2]
[368645393,1751262647027,-151.0,0.00019883,2]
[368645394,1751262647037,-151.0,0.00019883,2]
[368645395,1751262647046,-150.99245078,0.00019909,2]
[368645396,1751262647057,-603.36583331,0.00019909,2]
[368645397,1751262647067,-428.6822406,0.00019909,2]
[368645398,1751262647076,-5336.93668258,0.00019934,2]
[368645399,1751262647085,-1680.0,0.0001996,2]
[368645400,1751262647095,-160.0,0.0001998,3]
[368645401,1751262647104,-690.642,0.00019988,2]
[368645402,1751262647113,-207.4,0.00019988,2]
[368645403,1751262647123,-5000.0,0.00019988,2]
[368645404,1751262647132,-25000.0,0.00019988,2]
[368645405,1751262647141,-8906.75071779,0.00019988,2]
[368645406,1751262647151,-151.0,0.0001999,2]
[368645407,1751262647160,-151.0,0.0001999,2]
[368645408,1751262647170,-151.0,0.0001999,2]
[368645409,1751262647179,-151.0,0.0001999,2]
[368645410,1751262647189,-151.0,0.0001999,2]
[368645411,1751262647198,-151.0,0.0001999,2]
[368645412,1751262647207,-151.0,0.0001999,2]
[368645413,1751262647216,-151.0,0.0001999,2]
[368645414,1751262647226,-202.442738,0.0001999,2]
[368645415,1751262647235,-151.0,0.0001999,2]
[368645416,1751262647245,-151.0,0.0001999,2]
[368645417,1751262647255,-646.99031349,0.00019999,2]
[368645418,1751262647264,-300.0,0.0002,2]
[368645419,1751262647273,-1741.480471,0.0002,2]
[368645420,1751262647283,-743.52696279,0.00020029,2]
[368645421,1751262647292,-151.902895,0.00020032,2]
[368645422,1751262647302,-151.0,0.00020032,2]
[368645423,1751262647311,-151.0,0.00020032,2]
[368645424,1751262647321,-151.0,0.00020032,2]
[368645425,1751262647331,-151.0,0.00020032,2]
[368645426,1751262647340,-151.0,0.00020032,2]
[368645427,1751262647350,-847.41730813,0.00020032,3]
[368645428,1751262647358,-213.84631524,0.00020032,3]
[368645429,1751262647368,-966.0,0.00020033,2]
[368645430,1751262647378,-2151.0,0.00020033,2]
[368645431,1751262647387,-646.0,0.00020033,2]
[368645432,1751262647396,-406.0,0.00020033,2]
[368645433,1751262647406,-423.35,0.00020033,2]
[368645434,1751262647415,-160.0,0.0002004,3]
[368645435,1751262647424,-716.195754,0.00020043,2]
[368645436,1751262647433,-197.0,0.00020043,2]
[368645437,1751262647443,-151.0,0.00020043,2]
[368645438,1751262647452,-151.0,0.00020043,2]
[368645439,1751262647462,-151.0,0.00020043,2]
[368645440,1751262647471,-337.474726,0.00020043,2]
[368645441,1751262647480,-337.474726,0.00020043,2]
[368645442,1751262647490,-742.6949969,0.00020098,2]
[368645443,1751262647499,-165.27149543,0.000201,3]
[368645444,1751262647509,-5336.93668258,0.00020107,2]
[368645445,1751262647518,-1138.46,0.00020128,2]
[368645446,1751262647528,-1863.94,0.00020128,2]
[368645447,1751262647538,-2009.38,0.00020128,2]
[368645448,1751262647547,-460.0,0.00020128,2]
[368645449,1751262647557,-1952.25,0.00020128,2]
[368645450,1751262647567,-1675.49,0.00020128,2]
[368645451,1751262647577,-491.56,0.00020128,2]
[368645452,1751262647587,-2254.03,0.00020128,2]
[368645453,1751262647597,-460.0,0.00020128,2]
[368645454,1751262647607,-460.0,0.00020128,2]
[368645455,1751262647617,-1122.85,0.00020128,2]
[368645456,1751262647627,-1409.11,0.00020128,2]
[368645457,1751262647637,-460.0,0.00020128,2]
[368645458,1751262647647,-460.0,0.00020128,2]
[368645459,1751262647657,-727.02,0.00020129,2]
[368645460,1751262647667,-1127.62,0.00020129,2]
[368645461,1751262647676,-460.0,0.00020129,2]
[368645462,1751262647685,-460.0,0.00020129,2]
[368645463,1751262647695,-460.0,0.00020129,2]
[368645464,1751262647705,-460.0,0.00020129,2]
[368645465,1751262647714,-151.0,0.00020129,2]
[368645466,1751262647724,-460.0,0.00020129,2]
[368645467,1751262647734,-460.0,0.00020129,2]
[368645468,1751262647744,-151.0,0.00020129,2]
[368645469,1751262647754,-460.0,0.00020129,2]
[368645470,1751262647763,-750.26,0.00020129,2]
[368645471,1751262647773,-460.0,0.00020129,2]
[368645472,1751262647782,-11094.58,0.00020129,2]
[368645473,1751262647792,-3594.53,0.00020129,2]
[368645474,1751262647801,-483.7,0.00020129,2]
[368645475,1751262647811,-948.3,0.00020129,2]
[368645476,1751262647821,-710.42,0.00020129,2]
[368645477,1751262647831,-460.0,0.0002013,2]
[368645478,1751262647840,-460.0,0.0002013,2]
[368645479,1751262647850,-460.0,0.0002013,2]
[368645480,1751262647859,-460.0,0.0002013,2]
[368645481,1751262647869,-270.341912,0.0002013,2]
[368645482,1751262647879,-151.953828,0.0002013,2]
[368645483,1751262647889,-151.0,0.0002013,2]
[368645484,1751262647899,-857.18,0.0002013,2]
[368645485,1751262647910,-151.0,0.0002013,2]
[368645486,1751262647920,-394.626409,0.0002013,2]
[368645487,1751262647931,-1334.16,0.0002013,2]
[368645488,1751262647944,-394.626409,0.0002013,2]
[368645489,1751262647955,-460.0,0.0002013,2]
[368645490,1751262647966,-1105.03,0.0002013,2]
[368645491,1751262647975,-151.0,0.0002013,2]
[368645492,1751262647985,-151.0,0.0002013,2]
[368645493,1751262647995,-460.0,0.0002013,2]
[368645494,1751262648005,-1091.2,0.0002013,2]
[368645495,1751262648015,-1651.06,0.0002013,2]
[368645496,1751262648025,-460.0,0.0002013,2]
[368645497,1751262648034,-460.0,0.0002013,2]
[368645498,1751262648044,-760.58,0.0002013,2]
[368645499,1751262648053,-1315.33,0.0002013,2]
[368645500,1751262648063,-460.0,0.0002013,2]
[368645501,1751262648072,-4213.61,0.0002013,2]
[368645502,1751262648081,-560.78,0.00020131,2]
[368645503,1751262648091,-151.0,0.00020131,2]
[368645504,1751262648100,-151.0,0.00020131,2]
[368645505,1751262648111,-166.685958,0.00020131,2]
[368645506,1751262648121,-151.0,0.00020131,2]
[368645507,1751262648130,-166.685958,0.00020131,2]
[368645508,1751262648140,-275.897576,0.00020131,2]
[368645509,1751262648149,-275.897576,0.00020131,2]
[368645510,1751262648158,-151.0,0.00020132,2]
[368645511,1751262648168,-770.17471178,0.00020153,2]
[368645512,1751262648177,-159.495388,0.00020187,2]
[368645513,1751262648186,-798.67117612,0.00020208,2]
[368645514,1751262648195,-151.0,0.00020244,4]
[368645515,1751262648205,-828.22200964,0.00020263,2]
[368645516,1751262648215,-5336.93668258,0.00020279,3]
[368645517,1751262648224,-151.0,0.000203,3]
[368645518,1751262648234,-151.0,0.000203,3]
[368645519,1751262648244,-858.86622399,0.00020318,2]
[368645520,1751262648254,-500.0,0.00020321,2]
[368645521,1751262648263,-1500.0,0.00020321,2]
[368645522,1751262648272,-507.38068152,0.00020321,2]
[368645523,1751262648282,-1500.0,0.00020321,2]
[368645524,1751262648291,-501.08720691,0.00020321,2]
[368645525,1751262648301,-500.0,0.00020321,2]
[368645526,1751262648311,-1501.04793815,0.00020321,2]
[368645527,1751262648320,-1500.0,0.00020326,2]
[368645528,1751262648330,-159.319357,0.00020329,2]
[368645529,1751262648340,-177.3882618,0.00020329,2]
[368645530,1751262648350,-575.4102369,0.00020329,2]
[368645531,1751262648360,-153.0,0.00020329,2]
[368645532,1751262648370,-159.319357,0.00020329,2]
[368645533,1751262648379,-575.4102369,0.00020329,2]
[368645534,1751262648389,-306.0,0.00020356,2]
[368645535,1751262648399,-1500.0,0.0002036,2]
[368645536,1751262648408,-1493.84431527,0.0002036,2]
[368645537,1751262648418,-890.64427428,0.00020373,2]
[368645538,1751262648427,-1500.0,0.00020393,2]
[368645539,1751262648437,-151.0,0.000204,4]
[368645540,1751262648447,-1138.46,0.00020402,2]
[368645541,1751262648456,-1863.94,0.00020402,2]
[368645542,1751262648466,-2009.38,0.00020402,2]
[368645543,1751262648476,-460.0,0.00020402,2]
[368645544,1751262648485,-1952.25,0.00020402,2]
[368645545,1751262648495,-1675.49,0.00020402,2]
[368645546,1751262648504,-491.56,0.00020402,2]
[368645547,1751262648514,-2254.03,0.00020402,2]
[368645548,1751262648523,-460.0,0.00020402,2]
[368645549,1751262648533,-1122.85,0.00020402,2]
[368645550,1751262648543,-1409.11,0.00020402,2]
[368645551,1751262648552,-460.0,0.00020402,2]
[368645552,1751262648562,-529.00963422,0.00020402,2]
[368645553,1751262648573,-727.02,0.00020403,2]
[368645554,1751262648582,-1127.62,0.00020403,2]
[368645555,1751262648593,-460.0,0.00020403,2]
[368645556,1751262648603,-460.0,0.00020403,2]
[368645557,1751262648612,-460.0,0.00020403,2]
[368645558,1751262648621,-460.0,0.00020403,2]
[368645559,1751262648631,-460.0,0.00020403,2]
[368645560,1751262648641,-460.0,0.00020403,2]
[368645561,1751262648650,-460.0,0.00020403,2]
[368645562,1751262648659,-750.26,0.00020403,2]
[368645563,1751262648668,-460.0,0.00020403,2]
[368645564,1751262648677,-11094.58,0.00020403,2]
[368645565,1751262648686,-3594.53,0.00020403,2]
[368645566,1751262648696,-483.7,0.00020403,2]
[368645567,1751262648705,-948.3,0.00020403,2]
[368645568,1751262648714,-710.42,0.00020403,2]
[368645569,1751262648723,-460.0,0.00020404,2]
[368645570,1751262648732,-151.0,0.00020404,2]
[368645571,1751262648742,-267.450025,0.00020404,2]
[368645572,1751262648751,-460.0,0.00020404,2]
[368645573,1751262648761,-151.0,0.00020404,2]
[368645574,1751262648770,-155.278732,0.00020404,2]
[368645575,1751262648779,-151.0,0.00020404,2]
[368645576,1751262648789,-151.0,0.00020404,2]
[368645577,1751262648798,-460.0,0.00020404,2]
[368645578,1751262648808,-460.0,0.00020404,2]
[368645579,1751262648818,-857.18,0.00020404,2]
[368645580,1751262648827,-1334.16,0.00020404,2]
[368645581,1751262648837,-460.0,0.00020404,2]
[368645582,1751262648846,-1105.03,0.00020404,2]
[368645583,1751262648855,-1091.2,0.00020404,2]
[368645584,1751262648865,-1651.06,0.00020404,2]
[368645585,1751262648874,-460.0,0.00020404,2]
[368645586,1751262648883,-760.58,0.00020404,2]
[368645587,1751262648893,-151.0,0.00020404,2]
[368645588,1751262648903,-1315.33,0.00020404,2]
[368645589,1751262648912,-151.0,0.00020404,2]
[368645590,1751262648921,-151.0,0.00020404,2]
[368645591,1751262648931,-151.0,0.00020404,2]
[368645592,1751262648944,-203.92210919,0.00020404,2]
[368645593,1751262648953,-337.474726,0.00020404,2]
[368645594,1751262648963,-337.474726,0.00020404,2]
[368645595,1751262648972,-4213.61,0.00020404,2]
[368645596,1751262648982,-151.0,0.00020404,2]
[368645597,1751262648991,-151.339772,0.00020405,2]
[368645598,1751262649000,-151.0,0.00020405,2]
[368645599,1751262649011,-560.78,0.00020405,2]
[368645600,1751262649020,-163.79827838,0.00020405,2]
[368645601,1751262649030,-38714.02736061,0.00020418,2]
[368645602,1751262649039,-227.770671,0.00020418,2]
[368645603,1751262649165,-151.0,0.00020418,2]
[368645604,1751262649175,-923.59811243,0.00020428,2]
[368645605,1751262649184,-151.0,0.00020439,4]
[368645606,1751262649193,-5336.93668258,0.00020452,3]
[368645607,1751262649203,-957.77124259,0.00020483,2]
[368645608,1751262649212,-2025.71014839,0.000205,2]
[368645609,1751262649223,-9264.98445676,0.000205,2]
[368645610,1751262649232,-151.0,0.000205,4]
[368645611,1751262649242,-151.0,0.000205,2]
[368645612,1751262649251,-151.0,0.000205,2]
[368645613,1751262649261,-1000.0,0.000205,2]
[368645614,1751262649270,-153.12975,0.000205,2]
[368645615,1751262649280,-394.626409,0.000205,2]
[368645616,1751262649290,-394.626409,0.000205,2]
[368645617,1751262649299,-1014.789,0.0002052,2]
[368645618,1751262649309,-82764.7101755,0.00020534,2]
[368645619,1751262649319,-151.0,0.00020534,2]
[368645620,1751262649328,-151.0,0.00020534,2]
[368645621,1751262649337,-172.785604,0.00020534,2]
[368645622,1751262649348,-267.144722,0.00020534,2]
[368645623,1751262649358,-151.0,0.00020534,2]
[368645624,1751262649367,-166.685958,0.00020534,2]
[368645625,1751262649376,-151.0,0.00020534,2]
[368645626,1751262649385,-166.685958,0.00020534,2]
[368645627,1751262649395,-151.0,0.00020534,2]
[368645628,1751262649404,-151.0,0.00020534,2]
[368645629,1751262649413,-151.0,0.00020534,2]
[368645630,1751262649422,-275.897576,0.00020534,2]
[368645631,1751262649432,-275.897576,0.00020534,2]
[368645632,1751262649441,-151.0,0.00020534,2]
[368645633,1751262649450,-151.0,0.00020534,2]
[368645634,1751262649460,-192.12283,0.00020534,2]
[368645635,1751262649469,-337.474726,0.00020534,2]
[368645636,1751262649479,-337.474726,0.00020534,2]
[368645637,1751262649488,-151.0,0.00020534,2]
[368645638,1751262649498,-5000.0,0.00020536,2]
[368645639,1751262649508,-25000.0,0.00020536,2]
[368645640,1751262649517,-151.0,0.00020536,2]
[368645641,1751262649527,-993.20877856,0.00020538,2]
[368645642,1751262649536,-500.0,0.00020547,14]
[368645643,1751262649545,-151.0,0.00020548,2]
[368645644,1751262649554,-151.0,0.00020548,2]
[368645645,1751262649563,-3000.0,0.0002056,2]
[368645646,1751262649572,-3000.0,0.0002057,2]
[368645647,1751262649581,-151.0,0.0002057,2]
[368645648,1751262649591,-151.0,0.0002057,2]
[368645649,1751262649600,-151.0,0.0002057,2]
[368645650,1751262649609,-394.626409,0.0002057,2]
[368645651,1751262649619,-394.626409,0.0002057,2]
[368645652,1751262649629,-556.134714,0.00020579,4]
[368645653,1751262649638,-3000.0,0.0002058,2]
[368645654,1751262649648,-3000.0,0.0002059,2]
[368645655,1751262649657,-1029.95750337,0.00020593,2]
[368645656,1751262649666,-3000.0,0.000206,2]
[368645657,1751262649675,-5341.36,0.000206,2]
[368645658,1751262649685,-151.0,0.000206,4]
[368645659,1751262649694,-154.405057,0.000206,2]
[368645660,1751262649703,-3000.0,0.0002061,2]
[368645661,1751262649713,-3000.0,0.0002062,2]
[368645662,1751262649722,-5336.93668258,0.00020624,3]
[368645663,1751262649731,-5372.534975,0.0002063,2]
[368645664,1751262649741,-151.0,0.00020634,4]
[368645665,1751262649750,-1068.065931,0.00020648,2]
[368645666,1751262649760,-1138.46,0.00020676,2]
[368645667,1751262649769,-1863.94,0.00020676,2]
[368645668,1751262649778,-2009.38,0.00020676,2]
[368645669,1751262649788,-460.0,0.00020676,2]
[368645670,1751262649797,-1952.25,0.00020676,2]
[368645671,1751262649807,-1675.49,0.00020676,2]
[368645672,1751262649816,-491.56,0.00020676,2]
[368645673,1751262649825,-2254.03,0.00020676,2]
[368645674,1751262649835,-571.26897173,0.00020676,2]